Cogmind - Beta 13 @@@ ROGUE MODE // 2024.04.04 @ 15:04:09 Player: satan5 Result: Self-destructed Performance ------------- Evolutions (2) 1000 Regions Visited (4) 800 Robots Destroyed (22) 110 Value Destroyed (374) 374 Prototype IDs (0) 0 Alien Tech Used (0) 0 Bonus (0) 0 TOTAL SCORE: 2284 Bonus ------- None Cogmind --------- Core Integrity 496/550 Matter 247/300 Energy 100/100 System Corruption 3% Temperature Cool (9) Movement Treading (160) Location -8/Materials Parts ------- > --- POWER (1) -------- (None) > --- PROPULSION (4) --- Light Treads Light Treads Light Treads > --- UTILITY (4) ------ Small Storage Unit Structural Scanner Hacking Suite > --- WEAPON (2) ------- Light Assault Rifle > --- INVENTORY (8) ---- Light Deuterium Engine Large Storage Unit Improved Terrain Scan Processor Small Laser Particle Gun Minigun Plasma Cutter Peak State ------------ > --- POWER ------------ Light Ion Engine > --- PROPULSION ------- Aluminum Leg > --- UTILITY ---------- Small Storage Unit Structural Scanner Hardlight Generator Hacking Suite > --- WEAPON ----------- Light Assault Rifle Light Assault Rifle > --- INVENTORY -------- Light Deuterium Engine Heat Sink Large Storage Unit Small Laser Particle Gun Minigun Plasma Cutter [Rating: 13] Favorites ----------- Power Light Ion Engine Engine Light Ion Engine Propulsion Aluminum Leg Treads Light Treads Leg Aluminum Leg Utility Small Storage Unit Device Structural Scanner Storage Small Storage Unit Hackware Hacking Suite Weapon EM Pulse Gun Energy Gun EM Pulse Gun Ballistic Gun Light Assault Rifle Build | -11 -10 -10 -9 -8 ------- Run | Yrd Mat Min Mat Mat Slots Evolved 4 | . . . 2 2 Power . | . . . . . Propulsion 2 | . . . 2 . Utility 2 | . . . . 2 Weapon . | . . . . . Parts Attached 20 | 7 . 1 5 7 Power 3 | 2 . . 1 . Engine 3 | 2 . . 1 . Core . | . . . . . Reactor . | . . . . . Propulsion 6 | 2 . . 1 3 Treads 3 | . . . . 3 Leg 3 | 2 . . 1 . Wheel . | . . . . . Hover . | . . . . . Flight . | . . . . . Utility 6 | 1 . 1 . 4 Device 4 | . . 1 . 3 Storage 1 | 1 . . . . Processor . | . . . . . Hackware 1 | . . . . 1 Protection . | . . . . . Artifact . | . . . . . Weapon 5 | 2 . . 3 . Energy Gun 3 | 2 . . 1 . Energy Cannon . | . . . . . Ballistic Gun 2 | . . . 2 . Ballistic Cannon . | . . . . . Launcher . | . . . . . Special Weapon . | . . . . . Impact Weapon . | . . . . . Slashing Weapon . | . . . . . Piercing Weapon . | . . . . . Special Melee Weapon . | . . . . . Unidentified Prototypes . | . . . . . Parts Lost 9 | . . . 5 4 Power 2 | . . . 1 1 Propulsion 3 | . . . 2 1 Utility 2 | . . . . 2 Weapon 2 | . . . 2 . Highest Loss Streak 3 | . . . 3 2 To Critical Strikes . | . . . . . Average Slot Usage (%) 79 | . 85 91 80 67 Engine 11 | . 14 14 10 9 Treads 1 | . . . . 4 Leg 21 | . 28 28 26 6 Device 10 | . . 6 11 18 Storage 11 | . 14 14 11 9 Hackware 1 | . . . . 4 Energy Gun 15 | . 28 28 15 . Ballistic Gun 6 | . . . 4 17 Naked Turns . | . . . . . Heaviest Build 17 | 14 14 15 15 17 Greatest Support 40 | 20 20 20 30 40 Greatest Overweight (x) 3 | 1 . . 1 3 Average Overweight (x) . | . . . . 1 Largest Inventory Capacity 8 | 8 8 8 8 8 Average Capacity 7 | 7 8 8 8 8 Most Carried 8 | 5 3 4 4 8 Average Carried 3 | 2 2 3 2 5 Final Capacity 8 | 8 8 8 8 8 Final Carried 7 | 2 3 3 3 7 Class Distribution -------------------- 82% | Mutant 17% | Scavenger-Mutant Dominant Class ---------------- Mutant | -10/Materials Mutant | -10/Mines Mutant | -9/Materials Scavenger-Mutant | -8/Materials Resources | -11 -10 -10 -9 -8 ----------- Run | Yrd Mat Min Mat Mat Matter Collected 366 | 232 14 34 43 43 Remotely . | . . . . . Salvage Created 783 | . 14 56 472 241 Parts 45 | . 2 6 23 14 Haulers Intercepted 1 | . . . 1 . Recyclers Shooed 1 | . . . 1 . Parts Field Recycled . | . . . . . Retrieved Matter . | . . . . . Parts Self-Destructed . | . . . . . Prevented . | . . . . . Kills | -11 -10 -10 -9 -8 ------- Run | Yrd Mat Min Mat Mat Combat Hostiles Destroyed 15 | . . 2 9 4 Guns 10 | . . 1 5 4 AOE 4 | . . 1 3 . Classes Destroyed 10 | . 1 2 5 2 Builder 1 | . . 1 . . Hauler 1 | . . . 1 . Recycler 3 | . . . 2 1 Operator 1 | . 1 . . . Watcher 1 | . . . 1 . Swarmer 10 | . . 2 7 1 Grunt 1 | . . . 1 . Brawler 1 | . . . . 1 Duelist 1 | . . . . 1 Sentry 2 | . . . 1 1 Best Kill Streak 4 | . 1 3 3 4 Combat Bots Only 3 | . . 2 2 3 Max Kills in Single Turn 2 | . 1 1 2 1 Gunslinging . | . . . . . Exploded 2 | . . 1 2 . Melee . | . . . . . Uniques/NPCs Destroyed . | . . . . . Combat | -11 -10 -10 -9 -8 -------- Run | Yrd Mat Min Mat Mat Hostile Shots Fired 105 | . . 15 57 33 Missed 21 | . . 3 12 6 Damage Taken 1082 | . . 139 503 440 Core 184 | . . 25 105 54 Absorbed by Shields 16 | . . . . 16 Core Remaining (%) 87 | 100 . 90 73 . Volleys Fired 74 | . 3 6 40 25 Largest 2 | . 2 2 2 2 Hottest 80 | . 80 80 80 40 Shots Fired 135 | . 6 12 80 37 Gun 135 | . 6 12 80 37 Cannon . | . . . . . Launcher . | . . . . . Special . | . . . . . Kinetic 49 | . . . 12 37 Thermal 14 | . . . 14 . Explosive . | . . . . . Electromagnetic 72 | . 6 12 54 . Robot Hit Streak 18 | . 3 2 16 18 Robot Miss Streak 7 | . 2 3 7 3 Penetration Max . | . . . . . Secondary Targets . | . . . . . Shots Hit Robots 84 | . 3 5 45 31 Core Hits 37 | . 1 3 18 15 Critical Kills . | . . . . . Critical Parts Destroyed . | . . . . . Critical Strikes . | . . . . . Melee Attacks . | . . . . . Impact . | . . . . . Slashing . | . . . . . Piercing . | . . . . . Sneak Attacks . | . . . . . Combat Hostiles . | . . . . . Follow-up Attacks . | . . . . . Damage Inflicted 1023 | . 46 67 644 266 Guns 913 | . 46 45 556 266 Cannons . | . . . . . Explosions 110 | . . 22 88 . Melee . | . . . . . Ramming . | . . . . . Kinetic 316 | . . . 50 266 Thermal 165 | . . 22 143 . Explosive . | . . . . . Electromagnetic 542 | . 46 45 451 . Impact . | . . . . . Slashing . | . . . . . Piercing . | . . . . . Highest Corruption 3 | . . . . 3 Average Corruption 3 | . . . . 3 Corruption Purged . | . . . . . Corruption Blocked . | . . . . . Effects 1 | . . . . 1 Parts Rejected 1 | . . . . 1 Overload Shots . | . . . . . Overflow Damage 2 | . . . 2 . Projectiles . | . . . . . Explosions 2 | . . . 2 . Melee . | . . . . . Knockbacks . | . . . . . Impact . | . . . . . Kinetic . | . . . . . Secondary . | . . . . . Self-Inflicted Damage 107 | . . 40 67 . Shots 4 | . . 1 3 . Rammed . | . . . . . Targets Rammed . | . . . . . Kicked . | . . . . . Crushed . | . . . . . Highest Temperature 102 | . 36 54 102 3 Average Temperature 28 | . 18 25 31 3 Received Heat Transfer 231 | . . . 69 162 Siege Activations . | . . . . . Robots Corrupted 1 | . . . 1 . Combat Hostiles 1 | . . . 1 . Parts Fried 2 | . . . 2 . Impact Corruptions . | . . . . . Robots Melted . | . . . . . Combat Hostiles . | . . . . . Parts Melted . | . . . . . Heat Transferred 375 | . . 50 325 . Parts Sabotaged . | . . . . . Parts Stolen . | . . . . . Parts Stripped . | . . . . . Power Chain Reactions 3 | . . 1 2 . Alert | -11 -10 -10 -9 -8 ------- Run | Yrd Mat Min Mat Mat Peak Influence 342 | . 27 87 342 296 Initial 144 | . . 10 33 144 Average 120 | . 15 48 170 177 Maximum Alert Level 1 | . . . 1 1 Low Security (%) 81 | 100 100 100 64 80 Level 1 18 | . . . 35 19 Level 2 . | . . . . . Level 3 . | . . . . . Level 4 . | . . . . . Level 5 . | . . . . . High Security . | . . . . . Max Security . | . . . . . Squads Dispatched 3 | . 1 . 2 . Investigation 1 | . 1 . . . Extermination . | . . . . . Reinforcement 2 | . . . 2 . Assault . | . . . . . Garrison . | . . . . . Intercept . | . . . . . Searches Triggered . | . . . . . Construction Impeded . | . . . . . Haulers Reinforced . | . . . . . Active Scanning Responses . | . . . . . Cargo Convoy Interrupts . | . . . . . Stealth | -11 -10 -10 -9 -8 --------- Run | Yrd Mat Min Mat Mat Distress Signals 4 | . . . 2 2 Communications Jammed . | . . . . . Distress Signals . | . . . . . Times Spotted 39 | . 2 6 18 13 Peak Tracking Total 9 | . 1 3 6 9 Tactical Retreats 7 | . . 1 3 3 Traps | -11 -10 -10 -9 -8 ------- Run | Yrd Mat Min Mat Mat Traps Triggered . | . . . . . Indirectly . | . . . . . Trap Hack Attempts . | . . . . . Triggered . | . . . . . Disarmed . | . . . . . Reprogrammed . | . . . . . Reused . | . . . . . Traps Extracted . | . . . . . Installed . | . . . . . Triggered . | . . . . . Machines | -11 -10 -10 -9 -8 ---------- Run | Yrd Mat Min Mat Mat Machines Disabled 1 | . . . 1 . Max in Single Turn 1 | . . . 1 . Machines Repaired . | . . . . . Machines Dismantled . | . . . . . Machines Sabotaged . | . . . . . Overloaded Fab Kills . | . . . . . Hacking | -11 -10 -10 -9 -8 --------- Run | Yrd Mat Min Mat Mat Machines Accessed 6 | . 2 . 2 2 Terminals 4 | . 1 . 2 1 Fabricators . | . . . . . Repair Stations . | . . . . . Recycling Units 2 | . 1 . . 1 Scanalyzers . | . . . . . Garrison Access . | . . . . . Total Hacks 16 | . 5 . 7 4 Successful 7 | . 1 . 3 3 Failed 9 | . 4 . 4 1 Catastrophic 2 | . 1 . . 1 Database Lockouts . | . . . . . Manual 1 | . . . . 1 Terminals 12 | . 3 . 7 2 Fabricators . | . . . . . Repair Stations . | . . . . . Recycling Units 4 | . 2 . . 2 Scanalyzers . | . . . . . Garrison Access . | . . . . . Terminal Hacks 5 | . 1 . 3 1 Robot Analysis 1 | . . . 1 . Branch Access Points 2 | . 1 . . 1 Hauler Manifests 1 | . . . 1 . Zone Layout 1 | . . . 1 . Fabricator Hacks . | . . . . . Repair Station Hacks . | . . . . . Recycling Unit Hacks 1 | . . . . 1 Retrieve Components 1 | . . . . 1 Scanalyzer . | . . . . . Garrison Access Hacks . | . . . . . Unauthorized Hacks 1 | . . . . 1 Terminals . | . . . . . Fabricators . | . . . . . Repair Stations . | . . . . . Recycling Units 1 | . . . . 1 Monitor 1 | . . . . 1 Scanalyzers . | . . . . . Garrison Access . | . . . . . Data Cores Recovered . | . . . . . Used . | . . . . . Hacking Detections 4 | . 2 . 1 1 Full Trace Events 2 | . 1 . . 1 Feedback Events . | . . . . . Feedback Blocked . | . . . . . Robot Schematics Acquired . | . . . . . Robots Built . | . . . . . Authchips . | . . . . . Time . | . . . . . Total Robot Build Rating . | . . . . . Part Schematics Acquired . | . . . . . Parts Built . | . . . . . Authchips . | . . . . . Time . | . . . . . Total Part Build Rating . | . . . . . Parts Repaired . | . . . . . Time . | . . . . . Parts Recycled . | . . . . . Recycled Matter . | . . . . . Retrieved Matter . | . . . . . Retrieved Components 2 | . . . . 2 Parts Scanalyzed . | . . . . . Part Schematics Acquired . | . . . . . Parts Damaged . | . . . . . Bothacking | -11 -10 -10 -9 -8 ------------ Run | Yrd Mat Min Mat Mat Used RIF Installer . | . . . . . Robots Hacked . | . . . . . Non-combat . | . . . . . Combat . | . . . . . Robot Hacks Applied . | . . . . . Relay Couplers Released . | . . . . . Fabnet Peak Effective % . | . . . . . Robots Rewired . | . . . . . Allies Hacked . | . . . . . Hacks Repelled . | . . . . . Allies | -11 -10 -10 -9 -8 -------- Run | Yrd Mat Min Mat Mat Total Allies . | . . . . . Largest Group . | . . . . . Highest-Rated Group . | . . . . . Highest-Rated Ally . | . . . . . Total Orders . | . . . . . Ally Attacks . | . . . . . Total Damage . | . . . . . Kills . | . . . . . Allies Corrupted . | . . . . . Allies Melted . | . . . . . Intel | -11 -10 -10 -9 -8 ------- Run | Yrd Mat Min Mat Mat Robot Analysis Total 1 | . . . 1 . Derelict Logs Recovered . | . . . . . Drone Launches . | . . . . . Drone Recoveries . | . . . . . Exploration | -11 -10 -10 -9 -8 ------------- Run | Yrd Mat Min Mat Mat Turns Passed 847 | 67 88 156 310 226 Spaces Moved 383 | 39 66 79 119 80 Core 14 | 11 . . . 3 Treads 5 | . . . . 5 Legs 364 | 28 66 79 119 72 Wheels . | . . . . . Hover . | . . . . . Flight . | . . . . . Fastest Speed 50 | 50 120 120 120 160 Average Speed 140 | 136 120 120 133 188 Slowest Speed 200 | 190 120 120 190 200 Overloaded Moves . | . . . . . Propulsion Burnouts . | . . . . . Robots Hopped . | . . . . . Cave-ins Triggered . | . . . . . Exploration Rate (%) 17 | 5 16 34 18 13 Regions Visited 4 Branch Regions 1 Pre-discovered Areas . | . . . . . Known Exits Taken 1 | . 1 . . . Unknown Exits Taken 3 | 1 . 1 1 . Scrap Searched . | . . . . . Spaces Dug . | . . . . . Terrain Destroyed 14 | . . 7 7 . Melee . | . . . . . Projectile . | . . . . . AOE 14 | . . 7 7 . Terrain Rammed . | . . . . . Walls Destroyed . | . . . . . Machines Disabled . | . . . . . Actions | -11 -10 -10 -9 -8 --------- Run | Yrd Mat Min Mat Mat Total 565 | 52 69 128 192 124 Wait 71 | . . 42 25 4 Move 379 | 38 65 78 118 80 Hop . | . . . . . Pick Up 21 | 7 1 1 4 8 Fast Attach 3 | 1 . . . 2 Attach 14 | 5 . 1 4 4 Detach . | . . . . . Swap 3 | 1 . . 1 1 Drop . | . . . . . Fire 74 | . 3 6 40 25 Melee . | . . . . . Ram . | . . . . . Kick . | . . . . . Crush . | . . . . . Escape Stasis . | . . . . . Rewire . | . . . . . Trap . | . . . . . Miscellaneous . | . . . . . Route ------- -11/Scrapyard -10/Materials (discovered 2 exits: *Min x2) -10/Mines -9/Materials -8/Materials History --------- Turn | Location | Event 11 | -11/Scrapyard | Discovered new exit (range 16) 68 | -11/Scrapyard | Entered Materials 91 | -10/Materials | Identified exit to Mines 156 | -10/Materials | Entered Mines 163 | -10/Mines | Met a Derelict bent on vengeance 300 | -10/Mines | Discovered new exit (range 9) 307 | -10/Mines | Build established: Mutant 312 | -10/Mines | Entered Materials 312 | -9/Materials | Evolved 2 slots: Propulsion x2 592 | -9/Materials | Lost 3 parts (2n1w) 616 | -9/Materials | Discovered new exit (range 4) 622 | -9/Materials | Entered another Materials area 622 | -8/Materials | Evolved 2 slots: Utility x2 848 | -8/Materials | Self-destructed Last Messages --------------- 00787_ Acquired 41 matter. 00789_ R-06 Scavenger collects Heat Sink. 00791_ R-06 Scavenger destroyed. 00792_ Acquired 2 matter. 00795_ W-25 Informer sends out distress signal. 00796_ Acquired Lgt. Treads. 00805_ S-10 Pest destroyed. 00811_ Acquired Imp. Terrain Scan Processor. 00813_ Acquired Lgt. Treads. 00823_ System corrupted: Lgt. Assault Rifle rejected. 00828_ R-06 Scavenger collects Hammer. 00830_ Heat Sink destroyed. 00830_ L-31 Rogue destroyed. 00831_ R-06 Scavenger collects Core Shielding. 00834_ R-06 Scavenger collects Lgt. Armor Plating. 00836_ Electrolysis Chamber disabled. 00840_ W-25 Informer sends out distress signal. 00846_ Lgt. Ion Engine destroyed. Map ----- +----------------------------------------------------+ | ?????????????????????????????????????????????????? | | ?????????????????????????????????????????????????? | | ?????????????????????????????????????????????????? | | ?????????????????????????????????????????????????? | | ?????????????????????????????????????????????????? | | ?????????????????????????????????????????????????? | | ?????????????????????????????????????????????????? | | ?????????????????????????????????????????????????? | | ?????????????????????????????????????????????????? | | ?????????????????????????????????????????????????? | | ?????????????????????????????????????????????????? | | ?????????????????????????????????????????????????? | | ?????????????????????????????????????????????????? | | ?????????????????????????????????????????????????? | | ?????????????????????????????????????????????????? | | ?????????????????????????????????????????????????? | | ?????????????????????????????????????????????????? | | ??????#### ????? ##??????????????????????? | | ??????########+#?????+##+######??? ??????????????? | | ??????## ????? ####### ???????????????? | | #####?## ?????????? #"T"### ????????????????? | | ######## ^ w + ????????????????? | | ! !##### #############t # ????????????????? | | !#### # #### """ # ????????????????? | | #### # ####!!""" # ????????????????? | | #### #! """ ####%@ " |# ????????????????? | | # """"" ####*%g[% # ????????????????? | | + """"" +*%g /= ##????????????????? | | # """"" #### #####+##????????????????? | | ############ """ #### # ????????????????? | | ############ #### # ??????????????????????? | | ??????????## ####Y# ??????????????????????? | | ??????????############## # ??????????????????????? | | #########? # #### ##??????????????????????? | | #########?????????????# #??????????????????????? | | ##?????????????? ???????????????????????? | | ##?????????????# #??????????????????????? | | """ ##?????????????#####??????????????????????? | | """ ##?????????????#####??????????????????????? | | """ ##????????????????????????????????????????? | | Y" ##????????????????????????????????????????? | | "" ##????????????????????????????????????????? | | ##????????????????????????????????????????? | | #########????????????????????????????????????????? | | ######????????????????????????????????????????? | | "" ##????????????????????????????????????????????? | | T" ##????????????????????????????????????????????? | | "" ##????????????????????????????????????????????? | | ##????????????????????????????????????????????? | | ##????????????????????????????????????????????? | +----------------------------------------------------+ Best States ------------- Heat Dissipation 41 Energy Generation 10 Energy Capacity 250 Matter Stores 300 Matter Capacity 300 Sight Range 16 Terrain Scan Density 10 Evasion (%) 55 Recoil Reduction 3 Offensive Hacking 10 Item Schematics ----------------- None Robot Schematics ------------------ None Fabricated ------------ Nothing Alien Tech Used ----------------- None Achievements -------------- None Challenges ------------ None Game ------ Seed IntegratedSalvageLink Manual? 0 Play Time 00:10:05 Cumulative 126.9 hours Start 2024.04.04 @ 14:56:08 End 2024.04.04 @ 15:04:09 Sessions 1 Manual Loads 0 Difficulty Rogue Special Mode None Game No. 41 Rogue 27 Adventurer 14 Explorer 0 Win Type - Total 10 Types 8/0/0/1/0/0/0/0/1 Lore% 51 Gallery% 67 Achievement% 57 Wizard Run 0 Options --------- Layout 1 ASCII 0 Keyboard 0 Movement Mouse Keybinds 0 Fullscreen 1 Font 20/SmallcapsGlow Map View 50x35 Zoom Use 0% Tactical HUD 1 Map Filters NONE Filters NONE Steam 1 RUN: bb53a20e-4365-409f-908f-fe969829b0c0